bitfinex-derivatives/quotes_BTCF0:USTF0_20260131
["timestamp","ask_amount","ask_price","bid_price","bid_amount"]
[1769843189872,0.28987089,83765.0,83741.0,0.26954531]
[1769843191472,0.28987089,83765.0,83740.0,0.10756]
[1769843191976,0.28987089,83762.0,83740.0,0.10756]
[1769843195772,0.30182889,83762.0,83740.0,0.10756]
[1769843196377,0.28987089,83758.0,83733.0,0.011962]
[1769843196678,0.30182989,83756.0,83729.0,0.119562]
[1769843196876,0.26698578,83746.0,83723.0,0.06678462]
[1769843197076,0.26698578,83744.0,83723.0,0.06678462]
[1769843197476,0.26698578,83744.0,83720.0,0.1076]
[1769843197677,0.26698578,83744.0,83721.0,0.2715451]
[1769843207784,0.27626373,83742.0,83721.0,0.2715451]
[1769843210987,0.27626373,83738.0,83720.0,0.1076]
[1769843211180,0.27626373,83738.0,83714.0,0.29285089]
[1769843216299,0.27626373,83738.0,83714.0,0.28088589]
[1769843216690,0.27626373,83736.0,83714.0,0.28088589]
[1769843216893,0.27626373,83734.0,83714.0,0.28088589]
[1769843222705,0.1076,83735.0,83714.0,0.28088589]
[1769843222907,0.10764,83742.0,83728.0,0.28088589]
[1769843242416,0.10764,83742.0,83724.0,0.10764]
[1769843242417,0.011961,83738.0,83724.0,0.10764]
[1769843242617,0.27063689,83738.0,83724.0,0.10764]
[1769843242920,0.27063689,83741.0,83725.0,0.27029105]
[1769843244524,0.119601,83742.0,83725.0,0.27029105]
[1769843244718,0.10764,83742.0,83725.0,0.27029105]
[1769843249522,0.10764,83742.0,83724.0,0.10764]
[1769843249523,9.46e-05,83745.0,83727.0,0.27029105]
[1769843249725,0.10764,83759.0,83737.0,0.27029105]
[1769843249929,0.10764,83759.0,83738.0,0.27029105]
[1769843252218,0.10764,83759.0,83737.0,0.10764]
[1769843252219,0.27063689,83758.0,83737.0,0.10764]
[1769843252425,0.27063689,83747.0,83728.0,0.37789105]
[1769843252726,0.27063689,83747.0,83729.0,0.27029105]
[1769843257326,0.27063689,83747.0,83728.0,0.1076]
[1769843257728,0.28161506,83745.0,83728.0,0.1076]
[1769843258730,0.28161506,83745.0,83728.0,0.36695739]
[1769843258930,0.28161506,83745.0,83729.0,0.25935739]
[1769843266939,0.28161506,83745.0,83730.0,0.17918677]
[1769843269736,0.26172509,83748.0,83731.0,0.27848896]
[1769843271036,0.26172509,83748.0,83730.0,0.17918677]
[1769843275343,0.26172509,83748.0,83731.0,0.17918677]
[1769843276348,0.26172509,83748.0,83726.0,0.27848896]
[1769843277343,0.26172509,83745.0,83726.0,0.27848896]
[1769843277545,0.26172509,83745.0,83731.0,0.17927581]
[1769843277939,0.26172509,83745.0,83726.0,0.27848896]
[1769843278142,0.26172509,83745.0,83731.0,0.17928921]
[1769843281438,0.26172509,83745.0,83732.0,0.17928921]
[1769843283650,0.36932509,83745.0,83732.0,0.17928921]
[1769843290145,0.1076,83745.0,83732.0,0.17928921]
[1769843290350,0.1076,83745.0,83735.0,0.2791192]
[1769843290551,0.1076,83757.0,83738.0,0.2791192]
[1769843290850,0.1076,83757.0,83740.0,0.2791192]
[1769843293249,0.10701493,83757.0,83740.0,0.2910802]
[1769843293451,0.10701493,83757.0,83740.0,0.2791192]
[1769843299351,0.26825368,83756.0,83738.0,0.17928921]
[1769843299551,0.26825368,83749.0,83730.0,0.2791192]
[1769843301155,0.28021368,83748.0,83730.0,0.2791192]
[1769843302055,0.26825368,83748.0,83730.0,0.2791192]
[1769843306057,0.26825368,83748.0,83727.0,0.2791192]
[1769843306555,0.37585368,83748.0,83727.0,0.2791192]
[1769843307162,0.26825368,83747.0,83727.0,0.2791192]
[1769843310156,0.26825368,83743.0,83724.0,0.1076]
[1769843310558,0.26825368,83743.0,83725.0,0.2791192]
[1769843312859,0.01196,83747.0,83725.0,0.2791192]
[1769843313059,0.1076,83748.0,83725.0,0.2791192]
[1769843313060,0.26825368,83746.0,83725.0,0.2791192]
[1769843316165,0.1076,83745.0,83725.0,0.2791192]
[1769843319465,0.1076,83745.0,83729.0,0.17926646]
[1769843319664,0.1076,83745.0,83729.0,0.4319523]
[1769843323071,0.1076,83745.0,83730.0,0.25268584]
[1769843324072,0.1076,83745.0,83730.0,0.4319523]
[1769843326480,0.1076,83745.0,83731.0,0.25268584]
[1769843333879,0.1076,83745.0,83731.0,0.4319523]
[1769843336881,0.1076,83745.0,83731.0,0.25268584]
[1769843337081,0.1076,83745.0,83731.0,0.4319523]
[1769843337581,0.1076,83745.0,83732.0,0.25268584]
[1769843343181,0.1076,83745.0,83732.0,0.4319523]
[1769843347080,0.1076,83745.0,83733.0,0.25830499]
[1769843347986,0.1076,83746.0,83733.0,0.25830499]
[1769843350288,0.24945819,83745.0,83732.0,0.17926646]
[1769843350492,0.24945819,83742.0,83730.0,0.1581212]
[1769843350682,0.24945819,83738.0,83718.0,0.25830499]
[1769843350989,0.24945819,83736.0,83714.0,0.25830499]
[1769843351188,0.24945819,83734.0,83714.0,0.25830499]
[1769843353288,0.10369557,83735.0,83714.0,0.27026999]
[1769843353588,0.10369557,83735.0,83718.0,0.25830499]
[1769843366006,0.24945819,83734.0,83718.0,0.25830499]
[1769843366908,0.10369557,83735.0,83718.0,0.25830499]
[1769843367301,0.10369557,83735.0,83718.0,0.25930499]
[1769843367907,0.10369557,83735.0,83718.0,0.25830499]
[1769843370702,0.24945819,83734.0,83718.0,0.25830499]
[1769843371607,0.10369557,83735.0,83718.0,0.25830499]
[1769843375605,0.24945819,83742.0,83721.0,0.25830499]
[1769843377107,0.26141919,83742.0,83721.0,0.25830499]
[1769843380112,0.34595932,83741.0,83721.0,0.25830499]
[1769843380413,0.23831932,83740.0,83721.0,0.25830499]
[1769843385016,0.10764,83739.0,83721.0,0.25830499]
[1769843389216,0.05463262,83739.0,83730.0,0.24420603]
[1769843391423,0.05463262,83739.0,83730.0,0.24520603]
[1769843396309,0.05463262,83739.0,83730.0,0.24420603]
[1769843396513,0.05463262,83739.0,83730.0,0.24520603]
[1769843403436,0.05463262,83739.0,83730.0,0.24420603]
[1769843403630,0.05463262,83739.0,83730.0,0.24520603]
[1769843405432,0.05463262,83739.0,83730.0,0.24420603]
[1769843405733,0.05463262,83739.0,83730.0,0.24520603]
[1769843409434,0.1076,83754.0,83736.0,0.24860975]
[1769843409631,0.1076,83754.0,83730.0,0.001]
[1769843409632,0.1076,83754.0,83741.0,0.24860975]
[1769843411035,0.3558615,83764.0,83741.0,0.24860975]
[1769843411736,0.1076,83764.0,83741.0,0.24860975]
[1769843415341,0.1076,83764.0,83742.0,0.24860975]
[1769843422743,0.1076,83764.0,83742.0,0.26057075]
[1769843422951,0.2482615,83772.0,83748.0,0.24860975]
[1769843423153,0.2482615,83776.0,83750.0,0.24860975]
[1769843423449,0.2602175,83775.0,83750.0,0.24860975]
[1769843425249,0.2602175,83775.0,83751.0,0.24860975]
[1769843425450,0.31488,83777.0,83751.0,0.24860975]
[1769843425651,0.31488,83777.0,83750.0,0.20268286]
[1769843425652,0.31488,83777.0,83754.0,0.24860975]
[1769843426150,0.5631415,83777.0,83754.0,0.24860975]
[1769843427346,0.2482615,83776.0,83754.0,0.24860975]
[1769843431353,0.2602175,83776.0,83749.0,0.35620975]
[1769843431554,0.2482615,83769.0,83749.0,0.1076]
[1769843431755,0.2482615,83767.0,83749.0,0.1076]
[1769843431960,0.2482615,83765.0,83749.0,0.1076]
[1769843432160,0.2482615,83759.0,83741.0,0.73512]
[1769843433360,0.2482615,83759.0,83740.0,0.1076]
[1769843434859,0.2482615,83759.0,83740.0,0.35620975]
[1769843437861,0.2482615,83759.0,83741.0,0.23914011]
[1769843439264,0.1076,83768.0,83750.0,0.23518166]
[1769843439460,0.1076,83768.0,83751.0,0.24714066]
[1769843440163,0.1076,83768.0,83751.0,0.23518166]
[1769843451075,0.25580938,83767.0,83751.0,0.23518166]
[1769843452076,0.1076,83768.0,83751.0,0.23518166]
[1769843456178,0.25580938,83771.0,83751.0,0.23518166]
[1769843459691,0.36340938,83776.0,83751.0,0.23518166]
[1769843460081,0.25580938,83775.0,83751.0,0.23518166]
[1769843460585,0.1076,83776.0,83752.0,0.23518166]
[1769843462388,0.36340938,83776.0,83752.0,0.23518166]
[1769843465280,0.36340938,83776.0,83753.0,0.23518166]
[1769843467784,0.23628205,83775.0,83753.0,0.23518166]
[1769843468284,0.23628205,83775.0,83754.0,0.24427974]
[1769843469393,0.23628205,83775.0,83755.0,0.24427974]
[1769843470691,0.23628205,83775.0,83757.0,0.24427974]
[1769843470892,0.1076,83776.0,83760.0,0.24427974]
[1769843471595,0.1076,83776.0,83767.0,0.17929553]
[1769843473496,0.1076,83776.0,83766.0,0.17929553]
[1769843475792,0.1076,83776.0,83767.0,0.24427974]
[1769843475993,0.00031236,83776.0,83767.0,0.24427974]
[1769843476799,0.55616,83786.0,83767.0,0.24427974]
[1769843477300,0.79244205,83786.0,83767.0,0.24527974]
[1769843478797,0.79244205,83786.0,83767.0,0.24427974]
[1769843479294,0.23628205,83785.0,83767.0,0.24427974]
[1769843480798,0.23628205,83785.0,83767.0,0.42357527]
[1769843484095,0.23628205,83785.0,83767.0,0.24427974]
[1769843484300,0.24823705,83785.0,83766.0,0.10756]
[1769843484496,0.23628205,83781.0,83766.0,0.10371033]
[1769843484702,0.23628205,83777.0,83763.0,0.17929553]
[1769843486496,0.23628205,83776.0,83763.0,0.17929553]
[1769843486896,0.23628205,83776.0,83761.0,0.17929553]
[1769843496408,0.23628205,83776.0,83760.0,0.17929553]
[1769843500510,0.10756,83777.0,83761.0,0.24630744]
[1769843506418,0.10756,83777.0,83762.0,0.24630744]
[1769843512325,0.10756,83777.0,83762.0,0.42560297]
[1769843515329,0.10756,83777.0,83763.0,0.17929553]
[1769843516426,0.10756,83777.0,83762.0,0.42560297]
[1769843519831,0.10756,83777.0,83763.0,0.17929553]
[1769843520432,0.10756,83777.0,83763.0,0.42560297]
[1769843520833,0.10756,83777.0,83763.0,0.24630744]
[1769843526334,0.10756,83777.0,83763.0,0.42560297]
[1769843527932,0.10756,83776.0,83763.0,0.42560297]
[1769843533038,0.10756,83776.0,83763.0,0.24630744]
[1769843533244,0.10756,83776.0,83763.0,0.42560297]
[1769843533742,0.34853626,83776.0,83763.0,0.17929553]
[1769843533941,0.34853626,83776.0,83762.0,0.17929553]
[1769843535436,0.34853626,83776.0,83763.0,0.17929553]
[1769843536244,0.10756,83776.0,83763.0,0.41172039]
[1769843536448,0.10756,83776.0,83763.0,0.23242486]
[1769843537040,0.10756,83776.0,83763.0,0.41172039]
[1769843538545,0.34853626,83776.0,83763.0,0.17929553]
[1769843540647,0.34853626,83776.0,83762.0,0.17929553]
[1769843546950,0.24097626,83775.0,83762.0,0.17929553]
[1769843557861,0.25293226,83775.0,83762.0,0.17929553]
[1769843558051,0.25293226,83775.0,83760.0,0.17929553]
[1769843558249,0.25293226,83775.0,83759.0,0.17929553]
[1769843558553,0.24097626,83775.0,83759.0,0.42253341]
[1769843558856,0.24097626,83775.0,83759.0,0.17929553]
[1769843560656,0.24097626,83775.0,83758.0,0.17929553]
[1769843562660,0.24097626,83775.0,83758.0,0.41545546]
[1769843563660,0.10756,83776.0,83759.0,0.23615993]
[1769843564060,0.35269631,83776.0,83759.0,0.23615993]
[1769843564262,0.10756,83776.0,83760.0,0.23615993]
[1769843564562,0.10756,83776.0,83761.0,0.23615993]
[1769843564754,0.10756,83776.0,83762.0,0.23615993]
[1769843570566,0.24513631,83775.0,83760.0,0.23615993]
[1769843571369,0.10756,83776.0,83760.0,0.23615993]
[1769843572570,0.35269631,83776.0,83760.0,0.23615993]
[1769843580169,0.24513631,83776.0,83760.0,0.23615993]
[1769843580376,0.1076,83775.0,83760.0,0.23615993]
[1769843581876,0.1076,83775.0,83760.0,0.41545546]
[1769843582067,0.1076,83775.0,83762.0,0.23615993]
[1769843583681,0.10277344,83775.0,83762.0,0.23615993]
[1769843583886,0.10277344,83775.0,83764.0,0.23615993]
[1769843584088,0.10277344,83775.0,83765.0,0.23615993]
[1769843601801,0.10277344,83775.0,83766.0,0.24244256]
[1769843609107,0.10756,83782.0,83766.0,0.24244256]
[1769843610410,0.10756,83782.0,83767.0,0.17929553]
[1769843610605,0.10756,83782.0,83768.0,0.24244256]
[1769843614708,0.011953,83793.0,83769.0,0.24244256]
[1769843614913,0.10756,83796.0,83775.0,0.17929553]
[1769843615103,0.21362657,83795.0,83776.0,0.24244256]
[1769843615307,0.10756,83795.0,83777.0,0.17929553]
[1769843615513,0.10756,83795.0,83778.0,0.24244256]
[1769843616215,0.10756,83795.0,83779.0,0.24244256]
[1769843620615,0.011952,83800.0,83779.0,0.24244256]
[1769843622314,0.011952,83805.0,83779.0,0.24244256]
[1769843622515,0.011952,83805.0,83779.0,0.25439756]
[1769843624018,0.011952,83805.0,83779.0,0.24244256]
[1769843624210,0.24336301,83805.0,83779.0,0.24244256]
[1769843625011,0.011952,83805.0,83779.0,0.24244256]
[1769843625821,0.24336301,83805.0,83779.0,0.24244256]
[1769843627020,0.24336301,83805.0,83782.0,0.14290761]
[1769843627220,0.24336301,83805.0,83783.0,0.22422066]
[1769843637529,0.011952,83802.0,83783.0,0.22422066]
[1769843637824,0.57072,83801.0,83783.0,0.22422066]
[1769843639330,0.57072,83801.0,83784.0,0.22422066]
[1769843641232,0.57072,83801.0,83785.0,0.22422066]
[1769843641734,0.57072,83801.0,83784.0,0.14290761]
[1769843641735,0.23141101,83794.0,83784.0,0.1385587]
[1769843641932,0.23141101,83792.0,83776.0,0.40351619]
[1769843642130,0.23141101,83792.0,83775.0,0.28685553]
[1769843642333,0.24336501,83790.0,83775.0,0.10756]
[1769843642938,0.23141101,83789.0,83775.0,0.10756]
[1769843651238,0.011954,83790.0,83775.0,0.10756]
[1769843651239,0.22146017,83788.0,83775.0,0.10756]
[1769843664757,0.20950617,83788.0,83775.0,0.10756]
[1769843666856,0.20950617,83788.0,83771.0,0.22422066]
[1769843668862,0.583994,83791.0,83771.0,0.22422066]
[1769843669162,0.79350017,83791.0,83771.0,0.22422066]
[1769843669562,0.20950617,83790.0,83771.0,0.22422066]
[1769843671164,0.20950617,83790.0,83772.0,0.20935405]
[1769843671664,0.10756,83789.0,83772.0,0.20935405]
[1769843673160,0.10756,83789.0,83773.0,0.20935405]
[1769843691978,0.10756,83789.0,83774.0,0.21941173]
[1769843699393,0.21732809,83788.0,83772.0,0.39870726]
[1769843699693,0.21732809,83788.0,83773.0,0.21941173]
[1769843701991,0.21732809,83786.0,83772.0,0.17929553]
[1769843702290,0.21732809,83786.0,83771.0,0.17929553]
[1769843706097,0.21732809,83784.0,83770.0,0.17929553]
[1769843713201,0.10756,83783.0,83770.0,0.17929553]
[1769843717108,0.10756,83783.0,83768.0,0.19823573]
[1769843720607,0.20497427,83782.0,83764.0,0.23903673]
[1769843720816,0.20497427,83782.0,83765.0,0.19823573]
[1769843721005,0.21692927,83781.0,83765.0,0.19823573]
[1769843730321,0.21692927,83781.0,83761.0,0.10756]
[1769843730516,0.20497427,83778.0,83761.0,0.10756]
[1769843731314,0.20497427,83778.0,83760.0,0.19823573]
[1769843732023,0.21693027,83777.0,83760.0,0.19823573]
[1769843743026,0.21693027,83777.0,83756.0,0.20255079]
[1769843743226,0.20129125,83774.0,83754.0,0.20255079]
[1769843743425,0.20129125,83772.0,83754.0,0.20255079]
[1769843743628,0.20129125,83772.0,83754.0,0.26852164]
[1769843745433,0.20129125,83772.0,83755.0,0.20255079]
[1769843747336,0.20129125,83772.0,83759.0,0.17924851]
[1769843747930,0.20129125,83772.0,83759.0,0.1753459]
[1769843748124,0.20129125,83772.0,83755.0,0.20255079]
[1769843750838,0.10756,83773.0,83755.0,0.20255079]
[1769843762046,0.20129125,83772.0,83752.0,0.23903673]
[1769843762545,0.20129125,83772.0,83753.0,0.20255079]
[1769843767037,0.21324725,83772.0,83753.0,0.20255079]
[1769843767845,0.21324725,83772.0,83755.0,0.17930556]
[1769843776051,0.10756,83771.0,83755.0,0.17930556]
[1769843776253,0.28206042,83771.0,83755.0,0.17930556]
[1769843778447,0.17450042,83770.0,83755.0,0.17930556]
[1769843783361,0.17450042,83770.0,83754.0,0.17930556]
[1769843785656,0.1076,83769.0,83754.0,0.17930556]
[1769843787861,0.1076,83769.0,83754.0,0.34800029]
[1769843789663,0.1076,83769.0,83755.0,0.16869473]
[1769843791266,0.1076,83769.0,83756.0,0.17930556]
[1769843791465,0.1076,83769.0,83756.0,0.34800029]
[1769843793556,0.1076,83769.0,83757.0,0.16869473]
[1769843793758,0.1076,83769.0,83758.0,0.16869473]
[1769843794156,0.1076,83769.0,83758.0,0.34800029]
[1769843795160,0.1076,83769.0,83758.0,0.17930556]
[1769843795567,0.1076,83769.0,83757.0,0.17930556]
[1769843799570,0.1076,83769.0,83757.0,0.33484247]
[1769843807876,0.1076,83769.0,83757.0,0.17930556]
[1769843808070,0.1076,83769.0,83757.0,0.33484247]
[1769843812581,0.1076,83769.0,83758.0,0.15553691]
[1769843814883,0.1076,83769.0,83757.0,0.17930556]
[1769843815083,0.1076,83769.0,83756.0,0.17930556]
[1769843815471,0.26461869,83769.0,83756.0,0.17930556]
[1769843815783,0.16897669,83763.0,83749.0,0.17930556]
[1769843815985,0.16897669,83763.0,83748.0,0.17930556]
[1769843816186,0.16897669,83763.0,83747.0,0.17930556]
[1769843817284,0.16897669,83763.0,83746.0,0.17930556]
[1769843818188,0.16897669,83763.0,83745.0,0.17930556]
[1769843818386,0.16897669,83763.0,83745.0,0.15553691]
[1769843827395,0.15701869,83763.0,83745.0,0.15553691]
[1769843844310,0.15701869,83763.0,83746.0,0.13871015]
[1769843845211,0.15701869,83763.0,83746.0,0.31801571]
[1769843845412,0.15701869,83763.0,83747.0,0.13871015]
[1769843845613,0.15701869,83763.0,83746.0,0.17930556]
[1769843845814,0.15701869,83763.0,83744.0,0.17930556]
[1769843846515,0.141411,83761.0,83744.0,0.17930556]
[1769843846908,0.141411,83758.0,83744.0,0.17930556]
[1769843847107,0.1076,83757.0,83744.0,0.17930556]
[1769843850817,0.249011,83757.0,83744.0,0.17930556]
[1769843851017,0.249011,83757.0,83743.0,0.17930556]
[1769843852118,0.249011,83757.0,83744.0,0.17930556]
[1769843852318,0.249011,83757.0,83743.0,0.17930556]
[1769843856618,0.249011,83757.0,83744.0,0.17930556]
[1769843857024,0.12168622,83756.0,83744.0,0.17930556]
[1769843859529,0.12168622,83756.0,83750.0,0.00163434]
[1769843860028,0.1076,83757.0,83750.0,0.00163434]
[1769843860429,0.1076,83757.0,83753.0,0.00163434]
[1769843861530,0.1076,83757.0,83755.0,0.00163434]
[1769843862230,0.1076,83757.0,83755.0,0.00128273]
[1769843863020,0.1076,83757.0,83744.0,0.30237604]
[1769843866236,0.1076,83757.0,83745.0,0.17930556]
[1769843866438,0.1076,83757.0,83745.0,0.30237604]
[1769843866738,0.1076,83757.0,83745.0,0.12307048]
[1769843866930,0.1076,83757.0,83745.0,0.30237604]
[1769843867136,0.1076,83757.0,83745.0,0.12307048]
[1769843874645,0.1076,83757.0,83744.0,0.17930556]
[1769843875245,0.1076,83757.0,83745.0,0.17930556]
[1769843876645,0.1076,83757.0,83744.0,0.17930556]
[1769843877145,0.1076,83757.0,83744.0,0.30237604]
[1769843880848,0.1076,83756.0,83744.0,0.30237604]
[1769843882248,0.1076,83756.0,83745.0,0.12307048]
[1769843886649,0.1076,83756.0,83745.0,0.30237604]
[1769843887851,0.1076,83756.0,83746.0,0.10989869]
[1769843890449,0.1076,83755.0,83746.0,0.10989869]
[1769843891148,0.1076,83757.0,83747.0,0.10989869]
[1769843919668,0.1076,83757.0,83746.0,0.17540202]
[1769843919669,0.10487737,83754.0,83746.0,0.17540202]
[1769843919866,0.10487737,83748.0,83730.0,0.23903673]
[1769843920167,0.10487737,83746.0,83728.0,0.10157759]
[1769843921592,0.01196,83745.0,83728.0,0.10157759]
[1769843922883,0.11683737,83745.0,83728.0,0.10157759]
[1769843925079,0.11683837,83743.0,83728.0,0.10157759]
[1769843925874,0.10487737,83743.0,83728.0,0.10157759]
[1769843926980,0.11683737,83746.0,83728.0,0.10157759]
[1769843942683,0.1076,83745.0,83728.0,0.10157759]
[1769843946397,0.21247737,83745.0,83728.0,0.10157759]
[1769843946596,0.09607525,83744.0,83728.0,0.10157759]
[1769843947598,0.1076,83743.0,83728.0,0.10157759]
[1769843948099,0.20367525,83743.0,83728.0,0.10157759]
[1769843948498,0.09607525,83742.0,83728.0,0.10157759]
[1769843950598,0.09607525,83740.0,83721.0,0.1076]
[1769843950901,0.09607525,83738.0,83721.0,0.1076]
[1769843951091,0.09607525,83736.0,83721.0,0.1076]
[1769843953006,0.09607525,83734.0,83721.0,0.1076]
[1769843954400,0.09607525,83734.0,83717.0,0.09524315]
[1769843956710,0.01196,83749.0,83713.0,0.239163]
[1769843956711,0.09605893,83732.0,83713.0,0.239163]
[1769843956910,0.21566093,83731.0,83713.0,0.09536942]
[1769843957110,0.20369893,83731.0,83713.0,0.09536942]
[1769843962712,0.10764,83731.0,83713.0,0.09536942]
[1769843964310,0.08667473,83735.0,83713.0,0.09536942]
[1769843964518,0.18949178,83734.0,83713.0,0.09536942]
[1769843964915,0.10764,83734.0,83713.0,0.09536942]
[1769843965214,0.08185178,83733.0,83714.0,0.09524315]
[1769843973120,0.07062818,83731.0,83714.0,0.09524315]
[1769843974219,0.011962,83730.0,83714.0,0.09524315]
[1769843976319,0.06846563,83731.0,83714.0,0.09524315]
[1769843976522,0.10764,83734.0,83714.0,0.09524315]
[1769843977122,0.17305688,83734.0,83714.0,0.09524315]
[1769843983239,0.0517834,83733.0,83714.0,0.09524315]
[1769843983538,0.10764,83732.0,83714.0,0.09524315]
[1769843986937,0.04786339,83726.0,83713.0,0.00012627]
[1769843987140,0.04717408,83718.0,83699.0,0.07550185]
[1769843987435,0.15481408,83717.0,83699.0,0.07550185]
[1769843988241,9.571e-05,83716.0,83699.0,0.07550185]
[1769843990444,0.04976899,83716.0,83699.0,0.07550185]
[1769843998045,9.571e-05,83716.0,83699.0,0.07550185]
[1769844002545,0.315,83720.0,83701.0,0.07550185]
[1769844002843,0.08018927,83737.0,83711.0,0.07550185]
[1769844002844,0.10764,83728.0,83711.0,0.07550185]
[1769844003050,0.10353852,83728.0,83711.0,0.07550185]
[1769844003244,0.10353852,83728.0,83713.0,0.07550185]
[1769844003643,6.49e-05,83727.0,83713.0,0.07550185]
[1769844004952,6.49e-05,83727.0,83715.0,0.07550185]
[1769844007854,6.49e-05,83727.0,83715.0,0.07650185]
[1769844008659,6.49e-05,83727.0,83715.0,0.07550185]
[1769844008859,6.49e-05,83727.0,83715.0,0.07650185]
[1769844011357,0.0001183,84531.0,83718.0,0.0734699]
[1769844011358,0.07510136,83761.0,83718.0,0.0734699]
[1769844011546,0.07510136,83761.0,83731.0,0.0854319]
[1769844011547,0.22312047,83760.0,83731.0,0.0854319]
[1769844011750,0.011958,83759.0,83731.0,0.0734699]
[1769844012357,0.08705936,83759.0,83731.0,0.0734699]
[1769844015264,0.08706036,83756.0,83731.0,0.0734699]
[1769844022570,0.07510136,83749.0,83720.0,0.0734699]
[1769844022768,0.07510136,83747.0,83722.0,0.0734699]
[1769844023766,0.1076,83748.0,83722.0,0.0734699]
[1769844023767,0.07510136,83742.0,83722.0,0.0734699]
[1769844025170,0.07510136,83740.0,83721.0,0.1076]
[1769844025369,0.07510136,83738.0,83721.0,0.1076]
[1769844025567,0.07510136,83736.0,83721.0,0.1076]
[1769844025777,0.07510136,83734.0,83721.0,0.1076]
[1769844025967,0.07510136,83734.0,83712.0,0.1076]
[1769844026168,0.07510136,83734.0,83712.0,0.1810699]
[1769844026671,0.07510136,83734.0,83713.0,0.0734699]
[1769844030072,0.07510136,83732.0,83712.0,0.1076]
[1769844030261,0.07510136,83730.0,83712.0,0.1076]
[1769844030965,0.011963,83729.0,83712.0,0.1076]
[1769844031168,0.07510136,83728.0,83712.0,0.1076]
[1769844031368,0.10764,83727.0,83712.0,0.1076]
[1769844031871,0.10764,83727.0,83712.0,0.1810699]
[1769844032665,0.10764,83727.0,83713.0,0.0734699]
[1769844055589,0.18236774,83727.0,83713.0,0.0734699]
[1769844055989,0.18236774,83727.0,83707.0,0.10764]
[1769844055990,0.18236774,83727.0,83708.0,0.07568197]
[1769844056290,0.07472774,83726.0,83708.0,0.07568197]
[1769844059185,0.10764,83727.0,83707.0,0.10764]
[1769844059186,0.10764,83727.0,83714.0,0.07568197]
[1769844059390,0.10764,83737.0,83714.0,0.07568197]
[1769844060089,0.18236774,83737.0,83714.0,0.07568197]
[1769844060386,0.07472774,83736.0,83714.0,0.07568197]
[1769844061491,0.10764,83737.0,83714.0,0.07568197]
[1769844061687,0.10764,83737.0,83716.0,0.07568197]
[1769844061891,0.10764,83737.0,83720.0,0.07568197]
[1769844062197,0.10764,83748.0,83728.0,0.07568197]
[1769844065685,0.18236774,83748.0,83728.0,0.07568197]
[1769844072598,0.07111965,83747.0,83728.0,0.07568197]
[1769844090707,0.07111965,83747.0,83729.0,0.07058924]
[1769844091314,0.07111965,83747.0,83730.0,0.07058924]
[1769844095415,0.1076,83750.0,83730.0,0.07058924]
[1769844095907,0.17871965,83750.0,83730.0,0.07058924]
[1769844096214,0.07111965,83750.0,83731.0,0.07058924]
[1769844099013,0.07111965,83750.0,83733.0,0.011962]
[1769844099223,0.17962406,83754.0,83737.0,0.07556678]
[1769844099512,0.07202406,83753.0,83737.0,0.07556678]
[1769844100314,0.07202406,83753.0,83733.0,0.23903673]
[1769844101015,0.07202406,83753.0,83733.0,0.31460351]
[1769844102224,0.07202406,83753.0,83733.0,0.07556678]
[1769844102629,0.07202406,83753.0,83736.0,0.07556678]
[1769844105126,0.1076,83754.0,83736.0,0.07556678]
[1769844106527,0.1076,83754.0,83728.0,0.1076]
[1769844106528,0.07202406,83757.0,83739.0,0.07556678]
[1769844115631,0.07202406,83752.0,83736.0,0.1076]
[1769844115833,0.326877,83768.0,83726.0,0.1076]
[1769844115834,0.07202406,83742.0,83726.0,0.1076]
[1769844116029,0.07202406,83740.0,83726.0,0.1076]
[1769844116419,0.1076,83743.0,83726.0,0.1076]
[1769844116420,0.07202406,83738.0,83726.0,0.1076]
[1769844117431,0.07202406,83738.0,83716.0,0.72460678]
[1769844117626,0.07202406,83738.0,83716.0,0.64904]
[1769844121132,0.07202406,83738.0,83716.0,0.72460678]
[1769844121535,0.07202406,83738.0,83717.0,0.07556678]
[1769844137151,0.07202406,83738.0,83717.0,0.07209513]
[1769844137350,0.07202406,83738.0,83716.0,0.64904]
[1769844137852,0.07202406,83738.0,83717.0,0.07209513]
[1769844138451,0.1076,83743.0,83717.0,0.07209513]
[1769844138753,0.07491943,83742.0,83717.0,0.07209513]
[1769844139247,0.011961,83741.0,83717.0,0.07209513]
[1769844139450,0.011961,83741.0,83716.0,0.64904]
[1769844139451,0.1076,83743.0,83730.0,0.20272293]
[1769844139644,0.1076,83743.0,83731.0,0.07209513]
[1769844140045,0.1076,83752.0,83731.0,0.07209513]
[1769844140655,0.18251943,83752.0,83731.0,0.07209513]
[1769844140857,0.1076,83752.0,83731.0,0.07209513]
[1769844141053,0.18251943,83752.0,83731.0,0.07209513]
[1769844141557,0.07491943,83751.0,83731.0,0.07209513]
[1769844141755,0.07491943,83751.0,83731.0,0.07309513]
[1769844142456,0.07491943,83751.0,83731.0,0.07209513]
[1769844143353,0.07491943,83751.0,83700.0,0.48854763]
[1769844143354,0.07491943,83751.0,83727.0,0.07209513]
[1769844144255,0.07491943,83751.0,83728.0,0.1076]
[1769844144456,0.07491943,83751.0,83729.0,0.07209513]
[1769844146457,0.1076,83752.0,83728.0,0.1076]
[1769844146458,0.07491943,83747.0,83728.0,0.1076]
[1769844146954,0.1076,83752.0,83720.0,0.23903673]
[1769844146955,0.07491943,83745.0,83720.0,0.23903673]
[1769844147265,0.07491943,83745.0,83721.0,0.07209513]
[1769844151260,0.1076,83744.0,83721.0,0.07209513]
[1769844151458,0.07491943,83743.0,83721.0,0.07209513]
[1769844158072,0.1076,83744.0,83724.0,0.07795102]
[1769844158371,0.1076,83744.0,83729.0,0.07795102]
[1769844158570,0.10372711,83744.0,83733.0,0.07795102]
[1769844158765,0.07257709,83744.0,83735.0,0.07795102]
[1769844159763,0.07257709,83744.0,83735.0,0.07895102]
[1769844160974,0.1076,83754.0,83737.0,0.08004055]
[1769844179689,0.1076,83754.0,83739.0,0.08004055]
[1769844184494,0.0794805,83758.0,83739.0,0.08004055]
[1769844187196,0.1076,83761.0,83743.0,0.08107281]
[1769844187387,0.18571497,83761.0,83743.0,0.08107281]
[1769844187594,0.07811497,83760.0,83743.0,0.08107281]
[1769844196300,0.1076,83761.0,83743.0,0.08107281]
[1769844196506,0.07811497,83769.0,83748.0,0.08107281]
[1769844203704,0.07811497,83778.0,83757.0,0.08107281]
[1769844203912,0.07811497,83778.0,83758.0,0.08107281]
[1769844204800,0.07811497,83778.0,83757.0,0.1076]
[1769844208908,0.07811497,83776.0,83757.0,0.1076]
[1769844214313,0.07811497,83776.0,83757.0,0.18867281]
[1769844222021,0.07811497,83776.0,83758.0,0.07815531]
[1769844222219,0.07811497,83776.0,83757.0,0.1076]
[1769844223027,0.09597722,83771.0,83757.0,0.1076]
[1769844224124,0.08402022,83771.0,83757.0,0.1076]
[1769844226220,0.09597722,83771.0,83757.0,0.1076]